fUSD/lending_fUSD_20240220
["ID","MTS","AMOUNT","RATE_DAILY","PERIOD"]
[314596041,1708440638402,-25199.27,0.00034519,2]
[314596042,1708440638411,-3109.1,0.00034519,2]
[314596043,1708440638420,-1608.28369,0.0003452,2]
[314596044,1708440638430,-1430.42,0.0003452,2]
[314596045,1708440638439,-1430.55,0.0003452,2]
[314596046,1708440638449,-1426.99,0.0003452,2]
[314596047,1708440638459,-1451.28,0.0003452,2]
[314596048,1708440638468,-1429.21,0.0003452,2]
[314596049,1708440638478,-317.418111,0.0003452,2]
[314596050,1708440638487,-834.941102,0.0003452,2]
[314596051,1708440638496,-228.86,0.00034521,2]
[314596052,1708440638506,-150.0,0.00034548,10]
[314596053,1708440638515,-10144.4841,0.00034598,2]
[314596054,1708440638524,-5927.9421,0.00034598,2]
[314596055,1708440638537,-836.1203,0.00034598,2]
[314596056,1708440638547,-7136.1059,0.00034598,2]
[314596057,1708440638738,-153.32288752,0.00034622,2]
[314596058,1708440638749,-532.02686135,0.00034664,2]
[314596059,1708440638760,-154.05,0.00034673,2]
[314596060,1708440638770,-960.697,0.000347,2]
[314596061,1708440638783,-4348.2432,0.000347,2]
[314596062,1708440638794,-1431.35,0.000347,2]
[314596063,1708440638803,-1441.92,0.000347,2]
[314596064,1708440638813,-1000.0,0.000347,2]
[314596065,1708440638823,-245000.0,0.000347,2]
[314596066,1708440638832,-346.11218149,0.00034764,7]
[314596067,1708440638842,-2412.425535,0.00034794,2]
[314596068,1708440638851,-476.127166,0.00034794,2]
[314596069,1708440638861,-1252.411653,0.00034794,2]
[314596070,1708440638871,-320.77,0.00034833,2]
[314596071,1708440638880,-688.73794203,0.000349,2]
[314596072,1708440638890,-3216.56738,0.00034931,2]
[314596073,1708440638899,-634.836222,0.00034931,2]
[314596074,1708440638909,-1669.882205,0.00034931,2]
[314596075,1708440638919,-154.05,0.00035058,2]
[314596076,1708440638929,-4020.709225,0.00035068,2]
[314596077,1708440638939,-793.545278,0.00035068,2]
[314596078,1708440638948,-2087.352756,0.00035068,2]
[314596079,1708440638958,-158.6873372,0.00035157,2]
[314596080,1708440638969,-385.87,0.0003519,2]
[314596081,1708440638979,-152.96,0.0003531,2]
[314596082,1708440638989,-688.737942,0.00035338,2]
[314596083,1708440638998,-5628.992915,0.00035342,2]
[314596084,1708440639008,-1110.963389,0.00035342,2]
[314596085,1708440639017,-2922.293858,0.00035342,2]
[314596086,1708440639027,-154.05,0.00035443,2]
[314596087,1708440639040,-201.0,0.00035572,2]
[314596088,1708440639049,-1500.0,0.00035616,10]
[314596089,1708440639058,-228.86,0.00035798,2]
[314596090,1708440639068,-154.05,0.00035828,2]
[314596091,1708440639078,-153.32288752,0.00035915,2]
[314596092,1708440639087,-154.05,0.00036214,2]
[314596094,1708440639097,-158.6873372,0.00036285,2]
[314596096,1708440639107,-1000.0,0.00036376,2]
[314596098,1708440639117,-2947.29397083,0.00036389,2]
[314596100,1708440639126,-2947.29397079,0.00036389,2]
[314596101,1708440639135,-320.77,0.00036477,2]
[314596102,1708440639144,-154.05,0.00036599,2]
[314596103,1708440639153,-150.0,0.000366,2]
[314596105,1708440639162,-2947.29397079,0.0003674,2]
[314596106,1708440639172,-167.42752108,0.00036798,2]
[314596107,1708440639182,-688.737942,0.00036917,2]
[314596108,1708440639192,-165.73,0.00036929,2]
[314596109,1708440639202,-154.05,0.00036984,2]
[314596110,1708440639211,-228.86,0.00037075,2]
[314596111,1708440639221,-153.32288752,0.00037208,2]
[314596112,1708440639230,-346.11218149,0.00037286,8]
[314596113,1708440639239,-154.05,0.0003737,2]
[314596114,1708440639248,-167.42752105,0.00037406,2]
[314596115,1708440639257,-158.6873372,0.00037414,2]
[314596116,1708440639267,-385.87,0.00037454,2]
[314596117,1708440639277,-180.0,0.00037671,2]
[314596118,1708440639289,-154.05,0.00037755,2]
[314596119,1708440639299,-171128.494549,0.000379,2]
[314596120,1708440639308,-320.77,0.0003812,2]
[314596121,1708440639318,-154.05,0.0003814,2]
[314596122,1708440639327,-183.0,0.00038174,2]
[314596123,1708440639337,-228.86,0.00038352,2]
[314596124,1708440639346,-583.95,0.00038356,15]
[314596125,1708440639356,-153.24,0.00038356,2]
[314596127,1708440639367,-688.737942,0.00038496,2]
[314596129,1708440639377,-153.32288752,0.00038502,2]
[314596131,1708440639386,-158.6873372,0.00038542,2]
[314596133,1708440639396,-2947.29397079,0.00038989,2]
[314596135,1708440639405,-228.86,0.0003963,2]
[314596137,1708440639414,-677.76828938,0.00039654,11]
[314596138,1708440639423,-158.6873372,0.00039671,2]
[314596139,1708440639432,-385.87,0.00039718,2]
[314596140,1708440639442,-320.77,0.00039764,2]
[314596141,1708440639451,-153.32288752,0.00039795,5]
[314596142,1708440639460,-152.27,0.000398,3]
[314596143,1708440639469,-152.27,0.000398,3]
[314596144,1708440639479,-152.27,0.000398,3]
[314596145,1708440639489,-152.27,0.000398,3]
[314596146,1708440639498,-152.27,0.000398,3]
[314596147,1708440639508,-152.27,0.000398,3]
[314596148,1708440639517,-152.27,0.000398,3]
[314596149,1708440639526,-152.27,0.000398,3]
[314596150,1708440639540,-152.27,0.000398,3]
[314596151,1708440639549,-152.27,0.000398,3]
[314596152,1708440639558,-152.27,0.000398,3]
[314596153,1708440639568,-346.11218149,0.00039809,9]
[314596154,1708440639577,-1065.0,0.0004,30]
[314596155,1708440639586,-155.0,0.0004,4]
[314596156,1708440639596,-191.63562313,0.0004,4]
[314596157,1708440639605,-688.737942,0.00040075,5]
[314596158,1708440639614,-85564.2472745,0.00040078,5]
[314596159,1708440639624,-2234.20548529,0.00040088,12]
[314596160,1708440639633,-10425.07962453,0.00040222,16]
[314596161,1708440639642,-5102.03310917,0.00040247,14]
[314596162,1708440639651,-1275.50827729,0.00040247,8]
[314596163,1708440639660,-166.18,0.00040415,2]
[314596164,1708440639669,-1000.0,0.00040418,2]
[314596165,1708440639678,-158.6873372,0.00040799,2]
[314596166,1708440639688,-183.0,0.00040996,2]
[314596167,1708440639697,-153.32288752,0.00041088,10]
[314596168,1708440639707,-1000.0,0.00041095,60]
[314596169,1708440639717,-2947.29397079,0.00041238,3]
[314596170,1708440639727,-11617.0,0.000414,3]
[314596171,1708440639736,-2735.0,0.000414,3]
[314596172,1708440639746,-688.737942,0.00041654,5]
[314596173,1708440639755,-158.6873372,0.00041928,2]
[314596174,1708440639764,-385.87,0.00041981,2]
[314596175,1708440639774,-3010.04858001,0.00042,21]
[314596176,1708440639787,-583.95,0.00042092,15]
[314596177,1708440639796,-152.27,0.000422,4]
[314596178,1708440639806,-152.27,0.000422,4]
[314596179,1708440639816,-152.27,0.000422,4]
[314596180,1708440639825,-152.27,0.000422,4]
[314596181,1708440639835,-152.27,0.000422,4]
[314596182,1708440639844,-152.27,0.000422,4]
[314596183,1708440639853,-152.27,0.000422,4]
[314596184,1708440639863,-152.27,0.000422,4]
[314596185,1708440639872,-152.27,0.000422,4]
[314596186,1708440639882,-152.27,0.000422,4]
[314596187,1708440639892,-152.27,0.000422,4]
[314596188,1708440639901,-1110.22,0.00042231,2]
[314596189,1708440639911,-346.11218149,0.00042332,10]
[314596190,1708440639920,-153.32288752,0.00042381,15]
[314596191,1708440639929,-208.0,0.00042499,10]
[314596192,1708440639939,-167.42752105,0.00042571,4]
[314596193,1708440639948,-3585.62327808,0.00042743,4]
[314596195,1708440639958,-1644.26424806,0.00042899,7]
[314596196,1708440639966,-171.23555157,0.00042899,7]
[314596197,1708440639976,-398.22096968,0.00042899,7]
[314596198,1708440639985,-284.52022147,0.00042899,7]
[314596199,1708440639994,-3459.22873808,0.00042899,7]
[314596200,1708440640003,-1787.82067048,0.00042899,7]
[314596201,1708440640012,-711.496,0.0004305,2]
[314596203,1708440640021,-843.0,0.0004305,2]
[314596206,1708440640032,-954.0,0.0004305,2]
[314596209,1708440640042,-169.017,0.0004305,2]
[314596210,1708440640051,-150.0,0.0004305,2]
[314596212,1708440640060,-249.0,0.0004305,2]
[314596213,1708440640069,-150.0,0.0004305,2]
[314596214,1708440640078,-158.6873372,0.00043056,2]
[314596215,1708440640087,-6675.74707971,0.00043154,13]
[314596216,1708440640096,-688.737942,0.00043233,5]
[314596217,1708440640105,-150.0,0.00043356,30]
[314596218,1708440640114,-208.0,0.0004342,10]
[314596219,1708440640123,-2947.29397079,0.00043488,5]
[314596220,1708440640132,-2567.41150765,0.000436,5]
[314596221,1708440640141,-153.32288752,0.00043675,20]
[314596222,1708440640150,-183.0,0.00043818,2]
[314596223,1708440640160,-1044.49526938,0.00043835,70]
[314596224,1708440640169,-158.6873372,0.00044185,2]
[314596225,1708440640180,-385.87,0.00044245,2]
[314596226,1708440640190,-1419.65,0.000443,2]
[314596227,1708440640200,-208.0,0.00044341,10]
[314596228,1708440640209,-406.84,0.0004441,2]
[314596229,1708440640218,-1000.0,0.0004446,2]
[314596230,1708440640227,-152.27,0.000445,5]
[314596231,1708440640236,-152.27,0.000445,5]
[314596232,1708440640245,-152.27,0.000445,5]
[314596233,1708440640254,-152.27,0.000445,5]
[314596234,1708440640263,-152.27,0.000445,5]
[314596235,1708440640272,-152.27,0.000445,5]
[314596236,1708440640284,-152.27,0.000445,5]
[314596237,1708440640293,-152.27,0.000445,5]
[314596238,1708440640302,-152.27,0.000445,5]
[314596239,1708440640311,-152.27,0.000445,5]
[314596240,1708440640321,-152.27,0.000445,5]
[314596241,1708440640330,-824.93,0.00044541,120]
[314596242,1708440640339,-165.73,0.00044766,2]
[314596243,1708440640351,-688.737942,0.00044812,5]
[314596244,1708440640360,-346.11218149,0.00044855,12]
[314596245,1708440640369,-153.32288752,0.00044968,25]
[314596246,1708440640378,-393.86,0.0004499,10]
[314596247,1708440640388,-681.19,0.0004499,10]
[314596248,1708440640397,-567.66,0.0004499,10]
[314596249,1708440640407,-447.88010286,0.00045,4]
[314596250,1708440640416,-7752.439,0.00045,40]
[314596251,1708440640426,-1046.61331432,0.000452,2]
[314596252,1708440640435,-208.0,0.00045262,11]
[314596253,1708440640445,-158.6873372,0.00045313,2]
[314596254,1708440640454,-2947.29397079,0.00045737,7]
[314596255,1708440640463,-583.95,0.00045828,15]
[314596256,1708440640473,-20241.8565,0.00046,120]
[314596257,1708440640482,-10000.0,0.00046,30]
[314596258,1708440640491,-1000.0,0.00046,17]
[314596259,1708440640500,-150.0,0.0004605,2]
[314596260,1708440640509,-208.0,0.00046183,14]
[314596261,1708440640518,-153.32288752,0.00046261,30]
[314596262,1708440640527,-688.737942,0.00046391,5]
[314596263,1708440640538,-158.6873372,0.00046442,2]
[314596264,1708440640547,-10544.02191081,0.00046473,7]
[314596265,1708440640557,-5000.0,0.00046475,7]
[314596266,1708440640566,-385.87,0.00046509,2]
[314596267,1708440640575,-85564.2472745,0.00046563,10]
[314596268,1708440640585,-85564.2472745,0.00046565,10]
[314596269,1708440640594,-65062.27886621,0.00046573,4]
[314596270,1708440640604,-523.42453954,0.00046574,4]
[314596271,1708440640613,-500.0,0.00046575,6]
[314596272,1708440640622,-539.20556875,0.00046575,30]
[314596273,1708440640631,-500.0,0.00046575,30]
[314596274,1708440640641,-500.0,0.00046575,30]
[314596275,1708440640650,-500.0,0.00046575,30]
[314596276,1708440640659,-500.0,0.00046575,30]
[314596277,1708440640669,-500.0,0.00046575,30]
[314596278,1708440640678,-500.0,0.00046575,30]
[314596279,1708440640688,-500.0,0.00046575,30]
[314596280,1708440640697,-500.0,0.00046575,30]
[314596281,1708440640707,-500.0,0.00046575,30]
[314596282,1708440640716,-500.0,0.00046575,30]
[314596283,1708440640725,-500.0,0.00046575,30]
[314596284,1708440640735,-500.0,0.00046575,30]
[314596285,1708440640744,-500.0,0.00046575,30]
[314596286,1708440640753,-500.0,0.00046575,30]
[314596287,1708440640762,-500.0,0.00046575,30]
[314596288,1708440640772,-500.0,0.00046575,30]
[314596289,1708440640783,-500.0,0.00046575,30]
[314596290,1708440640793,-500.0,0.00046575,30]
[314596291,1708440640802,-152.70854521,0.00046575,30]
[314596292,1708440640812,-500.0,0.00046575,30]
[314596293,1708440640821,-500.0,0.00046575,30]
[314596294,1708440640830,-529.55132534,0.00046575,30]
[314596295,1708440640840,-500.0,0.00046575,30]
[314596296,1708440640849,-500.0,0.00046575,30]
[314596297,1708440640858,-500.0,0.00046575,30]
[314596298,1708440640867,-500.0,0.00046575,30]
[314596299,1708440640877,-500.0,0.00046575,30]
[314596300,1708440640887,-500.0,0.00046575,30]
[314596301,1708440640896,-500.0,0.00046575,30]
[314596302,1708440640905,-500.0,0.00046575,30]
[314596303,1708440640915,-421.55812592,0.00046575,30]
[314596304,1708440640924,-153.30681954,0.00046575,2]
[314596305,1708440640934,-500.0,0.00046575,30]
[314596306,1708440640942,-379.80309236,0.00046575,30]
[314596307,1708440640953,-500.0,0.00046575,30]
[314596308,1708440640962,-500.0,0.00046575,30]
[314596309,1708440640971,-500.0,0.00046575,30]
[314596310,1708440640981,-500.0,0.00046575,30]
[314596311,1708440640990,-500.0,0.00046575,30]
[314596312,1708440640999,-500.0,0.00046575,30]
[314596313,1708440641008,-500.0,0.00046575,30]
[314596314,1708440641017,-500.0,0.00046575,30]
[314596315,1708440641027,-500.0,0.00046575,30]
[314596316,1708440641038,-500.0,0.00046575,30]
[314596317,1708440641047,-500.0,0.00046575,30]
[314596318,1708440641056,-500.0,0.00046575,30]
[314596319,1708440641066,-543.70871715,0.00046575,30]
[314596320,1708440641074,-500.0,0.00046575,30]
[314596321,1708440641084,-500.0,0.00046575,30]
[314596322,1708440641094,-500.0,0.00046575,30]
[314596323,1708440641103,-500.0,0.00046575,30]
[314596324,1708440641112,-500.0,0.00046575,30]
[314596325,1708440641121,-606.38469841,0.00046575,30]
[314596326,1708440641130,-500.0,0.00046575,30]
[314596327,1708440641140,-500.0,0.00046575,30]
[314596328,1708440641150,-441.74,0.00046575,30]
[314596329,1708440641159,-708.87,0.00046575,30]
[314596330,1708440641169,-500.0,0.00046575,30]
[314596331,1708440641179,-500.0,0.00046575,30]
[314596332,1708440641190,-500.0,0.00046575,30]
[314596333,1708440641199,-500.0,0.00046575,30]
[314596334,1708440641209,-500.0,0.00046575,30]
[314596335,1708440641218,-500.0,0.00046575,30]
[314596336,1708440641227,-494.70017265,0.00046575,2]
[314596337,1708440641237,-500.0,0.00046575,30]
[314596338,1708440641247,-500.0,0.00046575,30]
[314596340,1708440641257,-500.0,0.00046575,30]
[314596342,1708440641266,-500.0,0.00046575,30]
[314596344,1708440641276,-500.0,0.00046575,2]
[314596346,1708440641288,-500.0,0.00046575,30]
[314596348,1708440641298,-500.0,0.00046575,30]
[314596349,1708440641307,-500.0,0.00046575,30]
[314596351,1708440641316,-500.0,0.00046575,2]
[314596353,1708440641325,-500.0,0.00046575,30]
[314596355,1708440641334,-500.0,0.00046575,30]
[314596357,1708440641344,-500.0,0.00046575,30]
[314596358,1708440641354,-500.0,0.00046575,30]
[314596359,1708440641366,-500.0,0.00046575,30]
[314596360,1708440641375,-500.0,0.00046575,30]
[314596361,1708440641385,-500.0,0.00046575,30]
[314596362,1708440641394,-500.0,0.00046575,30]
[314596363,1708440641404,-500.0,0.00046575,30]
[314596364,1708440641414,-500.0,0.00046575,30]
[314596365,1708440641423,-500.0,0.00046575,30]
[314596366,1708440641433,-500.0,0.00046575,30]
[314596367,1708440641442,-500.0,0.00046575,30]
[314596368,1708440641451,-500.0,0.00046575,30]
[314596369,1708440641461,-559.77627015,0.00046575,30]
[314596370,1708440641470,-609.22,0.00046575,30]
[314596371,1708440641480,-500.0,0.00046575,30]
[314596372,1708440641489,-500.0,0.00046575,30]
[314596373,1708440641499,-500.0,0.00046575,2]
[314596374,1708440641509,-500.0,0.00046575,30]
[314596375,1708440641518,-500.0,0.00046575,30]
[314596376,1708440641527,-285.0,0.00046575,30]
[314596377,1708440641539,-500.0,0.00046575,30]
[314596378,1708440641547,-500.0,0.00046575,30]
[314596379,1708440641556,-500.0,0.00046575,30]
[314596380,1708440641565,-500.0,0.00046575,30]
[314596381,1708440641576,-500.0,0.00046575,30]
[314596382,1708440641587,-500.0,0.00046575,30]
[314596383,1708440641596,-500.0,0.00046575,2]
[314596384,1708440641605,-500.0,0.00046575,30]
[314596385,1708440641614,-500.0,0.00046575,30]
[314596386,1708440641624,-500.0,0.00046575,30]
[314596387,1708440641633,-500.0,0.00046575,30]
[314596388,1708440641642,-500.0,0.00046575,30]
[314596389,1708440641652,-500.0,0.00046575,30]
[314596390,1708440641661,-500.0,0.00046575,30]
[314596391,1708440641671,-500.0,0.00046575,30]
[314596392,1708440641680,-500.0,0.00046575,30]
[314596393,1708440641689,-410.49660894,0.00046575,30]
[314596394,1708440641698,-245.65334112,0.00046575,30]
[314596395,1708440641708,-500.0,0.00046575,2]
[314596396,1708440641717,-500.0,0.00046575,30]
[314596397,1708440641726,-500.0,0.00046575,30]
[314596398,1708440641736,-500.0,0.00046575,30]
[314596399,1708440641745,-500.0,0.00046575,30]
[314596400,1708440641754,-391.98317159,0.00046575,30]
[314596401,1708440641764,-252.44804511,0.00046575,30]
[314596402,1708440641773,-516.55109406,0.00046575,30]
[314596403,1708440641784,-500.0,0.00046575,30]
[314596404,1708440641794,-500.0,0.00046575,30]
[314596405,1708440641803,-511.75417555,0.00046575,30]
[314596406,1708440641813,-500.0,0.00046575,30]
[314596407,1708440641822,-165.11506643,0.00046575,30]
[314596408,1708440641832,-500.0,0.00046575,30]
[314596409,1708440641841,-500.0,0.00046575,30]
[314596410,1708440641850,-500.0,0.00046575,30]
[314596411,1708440641860,-500.0,0.00046575,30]
[314596412,1708440641870,-500.0,0.00046575,30]
[314596413,1708440641879,-500.0,0.00046575,30]
[314596414,1708440641889,-500.0,0.00046575,30]
[314596415,1708440641898,-500.0,0.00046575,30]
[314596416,1708440641908,-500.0,0.00046575,30]
[314596417,1708440641917,-500.0,0.00046575,30]
[314596418,1708440641926,-500.0,0.00046575,30]
[314596419,1708440641935,-500.0,0.00046575,30]
[314596420,1708440641945,-500.0,0.00046575,30]
[314596421,1708440641954,-500.0,0.00046575,30]
[314596422,1708440641964,-500.0,0.00046575,30]
[314596423,1708440641972,-500.0,0.00046575,30]
[314596424,1708440641983,-500.0,0.00046575,30]
[314596425,1708440641992,-500.0,0.00046575,30]
[314596426,1708440642002,-1000.0,0.00046575,7]
[314596427,1708440642011,-500.0,0.00046575,30]
[314596428,1708440642020,-500.0,0.00046575,30]
[314596429,1708440642030,-500.0,0.00046575,30]
[314596430,1708440642041,-500.0,0.00046575,30]
[314596431,1708440642050,-500.0,0.00046575,30]
[314596432,1708440642059,-500.0,0.00046575,30]
[314596433,1708440642068,-500.0,0.00046575,30]
[314596434,1708440642077,-500.0,0.00046575,30]
[314596435,1708440642087,-317.72862988,0.00046575,30]
[314596436,1708440642096,-500.0,0.00046575,30]
[314596437,1708440642105,-500.0,0.00046575,30]
[314596438,1708440642114,-500.0,0.00046575,30]
[314596439,1708440642123,-624.88,0.00046575,30]
[314596440,1708440642133,-502.94532836,0.00046575,30]
[314596441,1708440642142,-500.0,0.00046575,30]
[314596442,1708440642150,-500.0,0.00046575,30]
[314596443,1708440642159,-150.0,0.00046575,30]
[314596444,1708440642169,-500.0,0.00046575,30]
[314596445,1708440642179,-500.0,0.00046575,30]
[314596446,1708440642188,-500.0,0.00046575,30]
[314596447,1708440642198,-500.0,0.00046575,30]
[314596448,1708440642208,-500.0,0.00046575,30]
[314596449,1708440642217,-500.0,0.00046575,30]
[314596450,1708440642226,-500.0,0.00046575,30]
[314596451,1708440642236,-358.42557405,0.00046575,30]
[314596452,1708440642245,-500.0,0.00046575,30]
[314596453,1708440642254,-500.0,0.00046575,30]
[314596454,1708440642264,-500.0,0.00046575,30]
[314596455,1708440642273,-500.0,0.00046575,30]
[314596456,1708440642282,-523.57599819,0.00046575,30]
[314596457,1708440642291,-500.0,0.00046575,30]
[314596458,1708440642300,-500.0,0.00046575,30]
[314596459,1708440642310,-513.81317709,0.00046575,30]
[314596461,1708440642319,-500.0,0.00046575,30]
[314596462,1708440642328,-561.29,0.00046575,30]
[314596464,1708440642337,-500.0,0.00046575,30]
[314596465,1708440642350,-500.0,0.00046575,30]
[314596466,1708440642360,-500.0,0.00046575,30]
[314596467,1708440642369,-534.87783871,0.00046575,30]
[314596469,1708440642378,-506.55404919,0.00046575,30]
[314596470,1708440642388,-543.19319134,0.00046575,30]
[314596471,1708440642397,-500.0,0.00046575,30]
[314596472,1708440642406,-500.0,0.00046575,30]
[314596473,1708440642415,-500.0,0.00046575,30]
[314596474,1708440642424,-500.0,0.00046575,30]
[314596475,1708440642436,-500.0,0.00046575,30]
[314596477,1708440642446,-500.0,0.00046575,30]
[314596478,1708440642455,-500.0,0.00046575,30]
[314596480,1708440642464,-500.0,0.00046575,30]
[314596481,1708440642474,-500.0,0.00046575,30]
[314596482,1708440642483,-500.0,0.00046575,30]
[314596483,1708440642492,-500.0,0.00046575,30]
[314596484,1708440642502,-500.0,0.00046575,30]
[314596486,1708440642511,-500.0,0.00046575,30]
[314596487,1708440642520,-500.0,0.00046575,30]
[314596488,1708440642530,-503.5408574,0.00046575,30]
[314596489,1708440642541,-599.66051883,0.00046575,30]
[314596491,1708440642551,-500.0,0.00046575,30]
[314596493,1708440642559,-500.0,0.00046575,30]
[314596495,1708440642569,-539.29,0.00046575,30]
[314596497,1708440642578,-500.0,0.00046575,30]
[314596499,1708440642587,-500.0,0.00046575,30]
[314596501,1708440642596,-500.0,0.00046575,30]
[314596503,1708440642605,-500.0,0.00046575,30]
[314596505,1708440642615,-500.0,0.00046575,30]
[314596508,1708440642624,-500.0,0.00046575,30]
[314596511,1708440642775,-500.0,0.00046575,30]
[314596512,1708440642788,-500.0,0.00046575,30]
[314596513,1708440642798,-500.0,0.00046575,30]
[314596514,1708440642807,-500.0,0.00046575,30]
[314596515,1708440642817,-529.35661272,0.00046575,30]
[314596516,1708440642827,-500.0,0.00046575,30]
[314596517,1708440642836,-500.0,0.00046575,30]
[314596518,1708440642846,-500.0,0.00046575,30]
[314596519,1708440642855,-500.0,0.00046575,30]
[314596520,1708440642864,-489.06071198,0.00046575,30]
[314596521,1708440642874,-529.003615,0.00046575,30]
[314596522,1708440642884,-500.0,0.00046575,30]
[314596523,1708440642893,-500.0,0.00046575,30]
[314596524,1708440642902,-500.0,0.00046575,30]
[314596525,1708440642912,-500.0,0.00046575,30]
[314596526,1708440642921,-500.0,0.00046575,30]
[314596527,1708440642931,-500.0,0.00046575,30]
[314596528,1708440642940,-500.0,0.00046575,30]
[314596529,1708440642949,-500.0,0.00046575,30]
[314596530,1708440642959,-500.0,0.00046575,30]
[314596531,1708440642968,-550.03696755,0.00046575,30]
[314596532,1708440642979,-500.0,0.00046575,30]
[314596533,1708440642989,-500.0,0.00046575,30]
[314596534,1708440643000,-500.0,0.00046575,30]
[314596535,1708440643010,-500.0,0.00046575,30]
[314596536,1708440643021,-500.0,0.00046575,2]
[314596537,1708440643032,-500.0,0.00046575,30]
[314596538,1708440643043,-500.0,0.00046575,2]
[314596539,1708440643053,-500.0,0.00046575,30]
[314596540,1708440643062,-442.22232479,0.00046575,30]
[314596541,1708440643072,-500.0,0.00046575,30]
[314596542,1708440643082,-523.95807118,0.00046575,30]
[314596543,1708440643094,-530.66578125,0.00046575,30]
[314596544,1708440643103,-500.0,0.00046575,30]
[314596545,1708440643112,-500.0,0.00046575,30]
[314596546,1708440643122,-500.0,0.00046575,30]
[314596548,1708440643131,-500.0,0.00046575,30]
[314596550,1708440643140,-500.0,0.00046575,30]
[314596552,1708440643149,-527.19162508,0.00046575,30]
[314596553,1708440643160,-450.09818658,0.00046575,30]
[314596555,1708440643169,-500.0,0.00046575,30]
[314596556,1708440643178,-500.0,0.00046575,30]
[314596557,1708440643188,-500.0,0.00046575,30]
[314596558,1708440643198,-500.0,0.00046575,30]
[314596559,1708440643208,-500.0,0.00046575,30]
[314596560,1708440643217,-500.0,0.00046575,30]
[314596561,1708440643227,-500.0,0.00046575,30]
[314596562,1708440643237,-500.0,0.00046575,30]
[314596563,1708440643246,-500.0,0.00046575,30]
[314596564,1708440643255,-500.0,0.00046575,30]
[314596565,1708440643264,-289.41320101,0.00046575,30]
[314596566,1708440643273,-500.0,0.00046575,30]
[314596567,1708440643284,-224.02361795,0.00046575,30]
[314596568,1708440643293,-500.0,0.00046575,30]
[314596569,1708440643302,-500.0,0.00046575,30]
[314596570,1708440643311,-645.83,0.00046575,30]
[314596571,1708440643321,-500.0,0.00046575,30]
[314596572,1708440643331,-500.0,0.00046575,30]
[314596573,1708440643340,-254.6,0.00046575,30]
[314596574,1708440643351,-500.0,0.00046575,30]
[314596575,1708440643363,-543.39,0.00046575,30]
[314596576,1708440643372,-500.0,0.00046575,30]
[314596577,1708440643382,-500.0,0.00046575,30]
[314596578,1708440643391,-500.0,0.00046575,30]
[314596579,1708440643400,-500.0,0.00046575,30]
[314596580,1708440643410,-500.0,0.00046575,30]
[314596581,1708440643419,-500.0,0.00046575,30]
[314596582,1708440643429,-500.0,0.00046575,30]
[314596583,1708440643440,-500.0,0.00046575,30]
[314596584,1708440643449,-500.0,0.00046575,30]
[314596585,1708440643459,-500.0,0.00046575,30]
[314596586,1708440643468,-500.0,0.00046575,30]
[314596587,1708440643477,-500.0,0.00046575,30]
[314596588,1708440643487,-500.0,0.00046575,30]
[314596589,1708440643496,-500.0,0.00046575,30]